[Event "Early-Titled-Tuesday-Blitz-February-13-2024"]
[Site "Chess.com"]
[Date "2024.02.13"]
[Round "1"]
[White "JonasEilenberg"]
[Black "omer1997"]
[Result "1/2-1/2"]
[WhiteElo "2599"]
[BlackElo "2294"]
[TimeControl "180+1"]
[EndTime "8:08:17 PST"]
[Termination "Game drawn - insufficient material"]

1. d4 {[%clk 0:03:00.9]} 1... d5 {[%clk 0:02:59.2]} 2. Nf3 {[%clk 0:03:01.3]}
2... Nf6 {[%clk 0:02:56.7]} 3. c3 {[%clk 0:03:01.6]} 3... c6 {[%clk 0:02:48.9]}
4. Qc2 {[%clk 0:03:01.3]} 4... g6 {[%clk 0:02:48]} 5. h3 {[%clk 0:03:00.7]} 5...
Bf5 {[%clk 0:02:41]} 6. Qb3 {[%clk 0:03:00.6]} 6... Qb6 {[%clk 0:02:37.6]} 7.
Bf4 {[%clk 0:02:42.7]} 7... Nbd7 {[%clk 0:02:16.2]} 8. Nbd2 {[%clk 0:02:43]}
8... Bg7 {[%clk 0:02:13.6]} 9. g4 {[%clk 0:02:39.4]} 9... Be4 {[%clk 0:02:11.7]}
10. Nxe4 {[%clk 0:02:31.4]} 10... Nxe4 {[%clk 0:01:58.7]} 11. e3 {[%clk
0:02:31.6]} 11... O-O {[%clk 0:01:33]} 12. Bd3 {[%clk 0:02:28.9]} 12... Rfe8
{[%clk 0:01:25.2]} 13. Bxe4 {[%clk 0:02:28.6]} 13... dxe4 {[%clk 0:01:25.3]} 14.
Ng5 {[%clk 0:02:28.7]} 14... Qxb3 {[%clk 0:01:19.9]} 15. axb3 {[%clk 0:02:29.6]}
15... e5 {[%clk 0:01:14.2]} 16. dxe5 {[%clk 0:02:13.6]} 16... Nxe5 {[%clk
0:01:14]} 17. Bxe5 {[%clk 0:02:13.7]} 17... Rxe5 {[%clk 0:01:09]} 18. h4 {[%clk
0:02:14.1]} 18... a6 {[%clk 0:00:58.6]} 19. Ke2 {[%clk 0:02:13]} 19... h6 {[%clk
0:00:34.5]} 20. Nh3 {[%clk 0:02:12.7]} 20... Rd8 {[%clk 0:00:31.4]} 21. Rhd1
{[%clk 0:02:13.1]} 21... Red5 {[%clk 0:00:31.5]} 22. b4 {[%clk 0:01:57.2]} 22...
Kf8 {[%clk 0:00:27.6]} 23. Nf4 {[%clk 0:01:50.5]} 23... R5d6 {[%clk 0:00:24.9]}
24. Rxd6 {[%clk 0:01:31.8]} 24... Rxd6 {[%clk 0:00:25.8]} 25. Rd1 {[%clk
0:01:32.2]} 25... Ke7 {[%clk 0:00:25.7]} 26. Rxd6 {[%clk 0:01:32.3]} 26... Kxd6
{[%clk 0:00:26.6]} 27. f3 {[%clk 0:01:18.7]} 27... Ke5 {[%clk 0:00:24.5]} 28.
Ng2 {[%clk 0:01:12.3]} 28... Kd5 {[%clk 0:00:22.9]} 29. fxe4+ {[%clk 0:01:01.5]}
29... Kxe4 {[%clk 0:00:23.8]} 30. Ne1 {[%clk 0:01:02.1]} 30... Bf6 {[%clk
0:00:18.7]} 31. Nf3 {[%clk 0:01:02.3]} 31... Bd8 {[%clk 0:00:14.4]} 32. h5
{[%clk 0:00:55.6]} 32... gxh5 {[%clk 0:00:14.1]} 33. gxh5 {[%clk 0:00:56.5]}
33... Kf5 {[%clk 0:00:14.7]} 34. Nd4+ {[%clk 0:00:52.1]} 34... Kg4 {[%clk
0:00:14.4]} 35. Nb3 {[%clk 0:00:53]} 35... Bb6 {[%clk 0:00:13.7]} 36. Nd2 {[%clk
0:00:46.2]} 36... Kxh5 {[%clk 0:00:13.6]} 37. Ne4 {[%clk 0:00:47.1]} 37... Kg4
{[%clk 0:00:09.8]} 38. Nd6 {[%clk 0:00:47.6]} 38... f5 {[%clk 0:00:08]} 39. Nxb7
{[%clk 0:00:46.4]} 39... h5 {[%clk 0:00:08.5]} 40. Nd6 {[%clk 0:00:45.8]} 40...
h4 {[%clk 0:00:08.4]} 41. Nc4 {[%clk 0:00:46.4]} 41... Bc7 {[%clk 0:00:08.5]}
42. Nd2 {[%clk 0:00:42.3]} 42... Kg3 {[%clk 0:00:08]} 43. e4 {[%clk 0:00:38.8]}
43... h3 {[%clk 0:00:07.2]} 44. exf5 {[%clk 0:00:39.1]} 44... h2 {[%clk
0:00:05.7]} 45. Nf1+ {[%clk 0:00:39.7]} 45... Kg4 {[%clk 0:00:06]} 46. Nxh2+
{[%clk 0:00:40.6]} 46... Bxh2 {[%clk 0:00:06.4]} 47. f6 {[%clk 0:00:40.8]} 47...
Kf5 {[%clk 0:00:06.9]} 48. f7 {[%clk 0:00:40.8]} 48... Bd6 {[%clk 0:00:07.6]}
49. Kd3 {[%clk 0:00:41.3]} 49... Ke6 {[%clk 0:00:08]} 50. Kc4 {[%clk 0:00:29.2]}
50... Kxf7 {[%clk 0:00:08.2]} 51. Kb3 {[%clk 0:00:29.9]} 51... Ke6 {[%clk
0:00:08.7]} 52. Ka4 {[%clk 0:00:30.5]} 52... Bc7 {[%clk 0:00:09.3]} 53. c4
{[%clk 0:00:30.8]} 53... Kd6 {[%clk 0:00:07.4]} 54. b5 {[%clk 0:00:20.3]} 54...
axb5+ {[%clk 0:00:07.2]} 55. cxb5 {[%clk 0:00:21.2]} 55... c5 {[%clk 0:00:07.8]}
56. b6 {[%clk 0:00:19.8]} 56... Bxb6 {[%clk 0:00:07.7]} 57. Kb5 {[%clk
0:00:20.5]} 57... Kd5 {[%clk 0:00:01.5]} 58. Kxb6 {[%clk 0:00:20.1]} 58... Kc4
{[%clk 0:00:01.6]} 59. Kc6 {[%clk 0:00:19.5]} 59... Kb4 {[%clk 0:00:02]} 60. Kd5
{[%clk 0:00:19.8]} 60... c4 {[%clk 0:00:02.6]} 61. Kd4 {[%clk 0:00:18.6]} 61...
Kb3 {[%clk 0:00:03.2]} 62. Kc5 {[%clk 0:00:18.6]} 62... Kxb2 {[%clk 0:00:03.6]}
63. Kxc4 {[%clk 0:00:19.3]} 1/2-1/2

[Event "Early-Titled-Tuesday-Blitz-February-13-2024"]
[Site "Chess.com"]
[Date "2024.02.13"]
[Round "1"]
[White "lachesisQ"]
[Black "DIMONBANAN"]
[Result "0-1"]
[WhiteElo "3050"]
[BlackElo "2556"]
[TimeControl "180+1"]
[EndTime "8:08:21 PST"]
[Termination "DIMONBANAN won by resignation"]

1. e4 {[%clk 0:03:00.9]} 1... e5 {[%clk 0:02:59.3]} 2. f4 {[%clk 0:03:00.2]}
2... exf4 {[%clk 0:02:59.2]} 3. Nf3 {[%clk 0:03:00.3]} 3... h6 {[%clk
0:02:59.5]} 4. d4 {[%clk 0:02:56.1]} 4... g5 {[%clk 0:02:59.1]} 5. g3 {[%clk
0:02:56.6]} 5... fxg3 {[%clk 0:02:57.5]} 6. hxg3 {[%clk 0:02:57.5]} 6... Bg7
{[%clk 0:02:57.3]} 7. Nc3 {[%clk 0:02:57.3]} 7... d6 {[%clk 0:02:53.8]} 8. Be3
{[%clk 0:02:57]} 8... Bg4 {[%clk 0:02:51.8]} 9. Be2 {[%clk 0:02:55.5]} 9... Nd7
{[%clk 0:02:51.3]} 10. Qd2 {[%clk 0:02:55.2]} 10... Ne7 {[%clk 0:02:44.1]} 11.
O-O-O {[%clk 0:02:54.3]} 11... c6 {[%clk 0:02:39.7]} 12. Kb1 {[%clk 0:02:49.2]}
12... Qc7 {[%clk 0:02:29.1]} 13. Rhf1 {[%clk 0:02:28.1]} 13... O-O-O {[%clk
0:02:25.7]} 14. d5 {[%clk 0:02:22.7]} 14... c5 {[%clk 0:02:25.3]} 15. e5 {[%clk
0:01:43.7]} 15... Bxf3 {[%clk 0:02:13.5]} 16. exd6 {[%clk 0:01:40.6]} 16... Qxd6
{[%clk 0:02:14.4]} 17. Bxf3 {[%clk 0:01:36.9]} 17... f5 {[%clk 0:01:45.2]} 18.
Be2 {[%clk 0:01:33.4]} 18... a6 {[%clk 0:01:38.7]} 19. g4 {[%clk 0:01:26.2]}
19... f4 {[%clk 0:01:35.3]} 20. Bg1 {[%clk 0:01:26.5]} 20... Rhe8 {[%clk
0:01:28.1]} 21. Ne4 {[%clk 0:01:21]} 21... Qe5 {[%clk 0:01:27.4]} 22. Nc3 {[%clk
0:01:17.8]} 22... Nxd5 {[%clk 0:01:07.9]} 23. Qxd5 {[%clk 0:01:10.5]} 23... Qxd5
{[%clk 0:01:08]} 24. Rxd5 {[%clk 0:01:10.6]} 24... Bxc3 {[%clk 0:01:08]} 25. Bd3
{[%clk 0:01:10.2]} 25... Bd4 {[%clk 0:01:01.4]} 26. Bxd4 {[%clk 0:00:53.7]}
26... cxd4 {[%clk 0:01:02.3]} 27. Bf5 {[%clk 0:00:54.4]} 27... Kc7 {[%clk
0:01:02.2]} 28. Rxd4 {[%clk 0:00:54.1]} 28... Nf6 {[%clk 0:00:55.3]} 29. Rc4+
{[%clk 0:00:53.2]} 29... Kb8 {[%clk 0:00:55.6]} 30. a3 {[%clk 0:00:53.2]} 30...
h5 {[%clk 0:00:49.3]} 31. gxh5 {[%clk 0:00:52.6]} 31... Nxh5 {[%clk 0:00:49]}
32. Bg6 {[%clk 0:00:50.6]} 32... Ng3 {[%clk 0:00:48.9]} 33. Rf3 {[%clk
0:00:38.8]} 33... Re3 {[%clk 0:00:44.4]} 34. Rf2 {[%clk 0:00:38.5]} 34... Re2
{[%clk 0:00:40.4]} 35. Rf3 {[%clk 0:00:38.3]} 35... Re3 {[%clk 0:00:36.5]} 36.
Rf2 {[%clk 0:00:38.5]} 36... f3 {[%clk 0:00:33.3]} 37. Bd3 {[%clk 0:00:33.2]}
37... Nh1 {[%clk 0:00:30.4]} 38. Rf1 {[%clk 0:00:29.9]} 38... f2 {[%clk
0:00:30.8]} 39. Ka2 {[%clk 0:00:15.3]} 39... Re1 {[%clk 0:00:30.5]} 40. Re4
{[%clk 0:00:14.6]} 40... Rxe4 {[%clk 0:00:25.1]} 41. Bxe4 {[%clk 0:00:14.3]}
41... Ng3 {[%clk 0:00:25.6]} 42. Rxf2 {[%clk 0:00:14.6]} 42... Nxe4 {[%clk
0:00:25.9]} 43. Rg2 {[%clk 0:00:15.2]} 43... Rg8 {[%clk 0:00:24.1]} 44. Re2
{[%clk 0:00:12.9]} 44... Nf6 {[%clk 0:00:19.5]} 45. Rf2 {[%clk 0:00:13.1]} 45...
Nd5 {[%clk 0:00:19.4]} 46. Rd2 {[%clk 0:00:12.9]} 46... Nf6 {[%clk 0:00:15.8]}
47. Rf2 {[%clk 0:00:12.9]} 47... Ne4 {[%clk 0:00:16.5]} 48. Re2 {[%clk
0:00:13.1]} 48... Nc5 {[%clk 0:00:17.2]} 49. b4 {[%clk 0:00:12.7]} 49... Nd7
{[%clk 0:00:16.2]} 50. Rd2 {[%clk 0:00:12.5]} 50... Kc7 {[%clk 0:00:16.6]} 51.
Kb3 {[%clk 0:00:10.5]} 51... g4 {[%clk 0:00:17.1]} 52. c4 {[%clk 0:00:10.7]}
52... g3 {[%clk 0:00:17.5]} 53. Rg2 {[%clk 0:00:11.1]} 53... Nf6 {[%clk
0:00:16.4]} 54. Ka4 {[%clk 0:00:11.2]} 54... Nh5 {[%clk 0:00:16.6]} 55. b5
{[%clk 0:00:11.6]} 55... axb5+ {[%clk 0:00:16.6]} 56. cxb5 {[%clk 0:00:11.7]}
56... Nf4 {[%clk 0:00:17.3]} 57. Rc2+ {[%clk 0:00:11.5]} 57... Kb8 {[%clk
0:00:17.4]} 58. Ka5 {[%clk 0:00:11.6]} 58... g2 {[%clk 0:00:17.7]} 59. Rc1
{[%clk 0:00:12]} 59... g1=Q {[%clk 0:00:17.8]} 60. Rxg1 {[%clk 0:00:12.8]} 60...
Rxg1 {[%clk 0:00:17.8]} 61. a4 {[%clk 0:00:13.7]} 61... Ne6 {[%clk 0:00:16.3]}
62. Kb6 {[%clk 0:00:13.7]} 62... Rg6 {[%clk 0:00:15.8]} 63. a5 {[%clk
0:00:13.6]} 63... Nc7+ {[%clk 0:00:15.5]} 64. Kc5 {[%clk 0:00:14]} 64... Nxb5
{[%clk 0:00:16.2]} 65. Kxb5 {[%clk 0:00:14.2]} 65... Ka7 {[%clk 0:00:16.3]} 66.
Kc5 {[%clk 0:00:14.4]} 66... Ka6 {[%clk 0:00:16.8]} 67. Kb4 {[%clk 0:00:14.7]}
67... Rg4+ {[%clk 0:00:16.8]} 68. Kc5 {[%clk 0:00:15]} 68... Kxa5 {[%clk
0:00:17.5]} 0-1

[Event "Early-Titled-Tuesday-Blitz-February-13-2024"]
[Site "Chess.com"]
[Date "2024.02.13"]
[Round "1"]
[White "Barmen_EV"]
[Black "scarabee43"]
[Result "0-1"]
[WhiteElo "2487"]
[BlackElo "2871"]
[TimeControl "180+1"]
[EndTime "8:08:24 PST"]
[Termination "scarabee43 won by checkmate"]

1. e4 {[%clk 0:03:00.9]} 1... c5 {[%clk 0:02:59.6]} 2. c3 {[%clk 0:02:54.8]}
2... d5 {[%clk 0:02:58.5]} 3. exd5 {[%clk 0:02:55.3]} 3... Qxd5 {[%clk
0:02:58.2]} 4. d4 {[%clk 0:02:56.2]} 4... Nf6 {[%clk 0:02:58.1]} 5. Nf3 {[%clk
0:02:56.8]} 5... e6 {[%clk 0:02:57.8]} 6. Be3 {[%clk 0:02:56.1]} 6... Nc6 {[%clk
0:02:55.3]} 7. Bd3 {[%clk 0:02:52.7]} 7... cxd4 {[%clk 0:02:46.8]} 8. cxd4
{[%clk 0:02:53.4]} 8... Be7 {[%clk 0:02:46.5]} 9. Nc3 {[%clk 0:02:53.7]} 9...
Qd8 {[%clk 0:02:44.5]} 10. O-O {[%clk 0:02:54.2]} 10... O-O {[%clk 0:02:44.6]}
11. Bb1 {[%clk 0:02:54.3]} 11... b6 {[%clk 0:02:38.2]} 12. Re1 {[%clk
0:02:54.5]} 12... Bb7 {[%clk 0:02:32.6]} 13. a3 {[%clk 0:02:54.6]} 13... Rc8
{[%clk 0:02:16]} 14. Qd3 {[%clk 0:02:54.6]} 14... g6 {[%clk 0:02:03.5]} 15. Bh6
{[%clk 0:02:54.1]} 15... Re8 {[%clk 0:02:02.9]} 16. Ba2 {[%clk 0:02:54.4]} 16...
Bf8 {[%clk 0:01:52]} 17. Bg5 {[%clk 0:02:54.4]} 17... h6 {[%clk 0:01:12.9]} 18.
Bh4 {[%clk 0:02:45.3]} 18... Bg7 {[%clk 0:01:04.9]} 19. Rad1 {[%clk 0:02:43.4]}
19... Ne7 {[%clk 0:01:01.5]} 20. Ne5 {[%clk 0:02:11.7]} 20... Nf5 {[%clk
0:01:01.3]} 21. Bg3 {[%clk 0:01:56.5]} 21... Nd5 {[%clk 0:00:58.5]} 22. Ne4
{[%clk 0:01:33]} 22... h5 {[%clk 0:00:58.5]} 23. h4 {[%clk 0:01:23.6]} 23... Bh6
{[%clk 0:00:40.8]} 24. Kh2 {[%clk 0:00:45.8]} 24... Bf4 {[%clk 0:00:29.6]} 25.
Nf3 {[%clk 0:00:31.4]} 25... Nxh4 {[%clk 0:00:20.8]} 26. Bxd5 {[%clk 0:00:30.5]}
26... exd5 {[%clk 0:00:15.8]} 27. Nc3 {[%clk 0:00:22.9]} 27... Bxg3+ {[%clk
0:00:16.1]} 28. fxg3 {[%clk 0:00:22.3]} 28... Nf5 {[%clk 0:00:14.9]} 29. Ne5
{[%clk 0:00:22.3]} 29... Qg5 {[%clk 0:00:14.9]} 30. Rf1 {[%clk 0:00:20.9]} 30...
Kg7 {[%clk 0:00:14.3]} 31. Nb5 {[%clk 0:00:19.2]} 31... Ba6 {[%clk 0:00:12.6]}
32. a4 {[%clk 0:00:17.1]} 32... Re7 {[%clk 0:00:12.2]} 33. Qf3 {[%clk
0:00:15.2]} 33... Bxb5 {[%clk 0:00:11.5]} 34. axb5 {[%clk 0:00:16.1]} 34... Ne3
{[%clk 0:00:11.8]} 35. Nxf7 {[%clk 0:00:14.8]} 35... Ng4+ {[%clk 0:00:06.3]} 36.
Kh1 {[%clk 0:00:14.3]} 36... Qe3 {[%clk 0:00:07]} 37. Ne5 {[%clk 0:00:03.5]}
37... Qxf3 {[%clk 0:00:06.8]} 38. Rxf3 {[%clk 0:00:03.4]} 38... Nxe5 {[%clk
0:00:06.9]} 39. dxe5 {[%clk 0:00:04.3]} 39... Rxe5 {[%clk 0:00:07.4]} 40. Rfd3
{[%clk 0:00:05]} 40... Rd8 {[%clk 0:00:07.7]} 41. Kg1 {[%clk 0:00:04.9]} 41...
Rd7 {[%clk 0:00:08]} 42. Rd4 {[%clk 0:00:05.2]} 42... Kf7 {[%clk 0:00:08.2]} 43.
b4 {[%clk 0:00:05.7]} 43... Ke6 {[%clk 0:00:08.6]} 44. Kf2 {[%clk 0:00:06.5]}
44... Re4 {[%clk 0:00:08.8]} 45. Rxe4+ {[%clk 0:00:05.6]} 45... dxe4 {[%clk
0:00:09.2]} 46. Rxd7 {[%clk 0:00:04.8]} 46... Kxd7 {[%clk 0:00:10]} 47. Ke3
{[%clk 0:00:05.7]} 47... Kd6 {[%clk 0:00:10.4]} 48. Kxe4 {[%clk 0:00:06.5]}
48... Ke6 {[%clk 0:00:10.9]} 49. Kf4 {[%clk 0:00:06.9]} 49... Kf6 {[%clk
0:00:11.1]} 50. Ke4 {[%clk 0:00:07.3]} 50... Kg5 {[%clk 0:00:11.3]} 51. Kf3
{[%clk 0:00:07.5]} 51... Kf5 {[%clk 0:00:11.8]} 52. g4+ {[%clk 0:00:04.1]} 52...
hxg4+ {[%clk 0:00:11.6]} 53. Kf2 {[%clk 0:00:04.7]} 53... Kf4 {[%clk 0:00:11.8]}
54. g3+ {[%clk 0:00:05]} 54... Ke4 {[%clk 0:00:12.3]} 55. Ke2 {[%clk 0:00:05.9]}
55... g5 {[%clk 0:00:13]} 56. Kf2 {[%clk 0:00:06]} 56... Kd3 {[%clk 0:00:13]}
57. Kg2 {[%clk 0:00:06.9]} 57... Ke3 {[%clk 0:00:13.5]} 58. Kh2 {[%clk
0:00:07.8]} 58... Kf3 {[%clk 0:00:14]} 59. Kg1 {[%clk 0:00:08.3]} 59... Kxg3
{[%clk 0:00:14.5]} 60. Kh1 {[%clk 0:00:09.2]} 60... Kf4 {[%clk 0:00:15.2]} 61.
Kg2 {[%clk 0:00:09.6]} 61... Ke4 {[%clk 0:00:16]} 62. Kg3 {[%clk 0:00:10.1]}
62... Kd4 {[%clk 0:00:16.7]} 63. Kxg4 {[%clk 0:00:11]} 63... Kc4 {[%clk
0:00:17.5]} 64. Kxg5 {[%clk 0:00:11.9]} 64... Kxb4 {[%clk 0:00:18.2]} 65. Kf4
{[%clk 0:00:12.8]} 65... Kxb5 {[%clk 0:00:19]} 66. Ke4 {[%clk 0:00:13.7]} 66...
Kc4 {[%clk 0:00:19.7]} 67. Ke3 {[%clk 0:00:14.2]} 67... Kc3 {[%clk 0:00:20.3]}
68. Ke4 {[%clk 0:00:14.5]} 68... b5 {[%clk 0:00:20.4]} 69. Kd5 {[%clk
0:00:15.4]} 69... b4 {[%clk 0:00:21.1]} 70. Kc5 {[%clk 0:00:16.3]} 70... b3
{[%clk 0:00:21.8]} 71. Kc6 {[%clk 0:00:17.2]} 71... b2 {[%clk 0:00:22.7]} 72.
Kb7 {[%clk 0:00:18.1]} 72... b1=Q+ {[%clk 0:00:23.3]} 73. Ka8 {[%clk 0:00:18.9]}
73... Qb5 {[%clk 0:00:23.2]} 74. Kxa7 {[%clk 0:00:19.8]} 74... Kc4 {[%clk
0:00:23.7]} 75. Ka8 {[%clk 0:00:20.6]} 75... Kc5 {[%clk 0:00:24.3]} 76. Ka7
{[%clk 0:00:21.5]} 76... Kc6 {[%clk 0:00:24.9]} 77. Ka8 {[%clk 0:00:22.4]} 77...
Qb7# {[%clk 0:00:25.3]} 0-1

[Event "Early-Titled-Tuesday-Blitz-February-13-2024"]
[Site "Chess.com"]
[Date "2024.02.13"]
[Round "1"]
[White "Sofia_Blokhin"]
[Black "bipe137"]
[Result "1/2-1/2"]
[WhiteElo "2239"]
[BlackElo "2597"]
[TimeControl "180+1"]
[EndTime "8:08:24 PST"]
[Termination "Game drawn - insufficient material"]

1. d4 {[%clk 0:02:58.7]} 1... d5 {[%clk 0:02:59.6]} 2. c4 {[%clk 0:02:58.2]}
2... e6 {[%clk 0:03:00.1]} 3. Nc3 {[%clk 0:02:57.5]} 3... a6 {[%clk 0:03:00.7]}
4. cxd5 {[%clk 0:02:55]} 4... exd5 {[%clk 0:03:01.6]} 5. e3 {[%clk 0:02:55.2]}
5... Nf6 {[%clk 0:03:00.2]} 6. Nf3 {[%clk 0:02:52.8]} 6... Bd6 {[%clk
0:02:58.5]} 7. Bd3 {[%clk 0:02:52.5]} 7... O-O {[%clk 0:02:57.9]} 8. O-O {[%clk
0:02:52.3]} 8... Re8 {[%clk 0:02:58.4]} 9. Re1 {[%clk 0:02:52.1]} 9... c6 {[%clk
0:02:57.4]} 10. Qc2 {[%clk 0:02:52]} 10... Bg4 {[%clk 0:02:51.7]} 11. e4 {[%clk
0:02:11.7]} 11... dxe4 {[%clk 0:02:48.9]} 12. Nxe4 {[%clk 0:02:11]} 12... Nxe4
{[%clk 0:02:43.8]} 13. Bxe4 {[%clk 0:02:08.4]} 13... h6 {[%clk 0:02:39.9]} 14.
Bd2 {[%clk 0:02:03.1]} 14... Nd7 {[%clk 0:02:38.8]} 15. h3 {[%clk 0:01:57]}
15... Be6 {[%clk 0:02:36.3]} 16. Bc3 {[%clk 0:01:45.1]} 16... Nf6 {[%clk
0:02:34.4]} 17. Bd3 {[%clk 0:01:42.9]} 17... Nd5 {[%clk 0:02:33.5]} 18. Rad1
{[%clk 0:01:30.5]} 18... Nf4 {[%clk 0:02:33]} 19. Be4 {[%clk 0:01:26.8]} 19...
Qc8 {[%clk 0:02:26]} 20. b4 {[%clk 0:01:22.7]} 20... Bxh3 {[%clk 0:02:23]} 21.
gxh3 {[%clk 0:01:11.7]} 21... Qxh3 {[%clk 0:02:23.9]} 22. Ne5 {[%clk 0:00:58.6]}
22... Bxe5 {[%clk 0:01:53.5]} 23. dxe5 {[%clk 0:00:58.1]} 23... Re6 {[%clk
0:01:54.1]} 24. f3 {[%clk 0:00:48.8]} 24... Qg3+ {[%clk 0:01:45.3]} 25. Kf1
{[%clk 0:00:45.9]} 25... Qh3+ {[%clk 0:01:40.9]} 26. Kg1 {[%clk 0:00:46]} 26...
Qg3+ {[%clk 0:01:40.1]} 27. Kf1 {[%clk 0:00:46.3]} 27... Rae8 {[%clk 0:01:37.4]}
28. Qf2 {[%clk 0:00:40.8]} 28... Qh3+ {[%clk 0:01:37.3]} 29. Kg1 {[%clk
0:00:41]} 29... Qh5 {[%clk 0:01:31.4]} 30. Qg3 {[%clk 0:00:37.2]} 30... Ng6
{[%clk 0:01:28.2]} 31. Rd6 {[%clk 0:00:33.4]} 31... a5 {[%clk 0:01:16.5]} 32.
Rxe6 {[%clk 0:00:33.1]} 32... Rxe6 {[%clk 0:01:15.5]} 33. Rd1 {[%clk 0:00:33.4]}
33... axb4 {[%clk 0:01:14.3]} 34. Bb2 {[%clk 0:00:30.8]} 34... Re8 {[%clk
0:01:11.8]} 35. Bxg6 {[%clk 0:00:28.6]} 35... fxg6 {[%clk 0:01:11.7]} 36. Rd6
{[%clk 0:00:26.9]} 36... Qf5 {[%clk 0:01:08.8]} 37. Bd4 {[%clk 0:00:20.4]} 37...
c5 {[%clk 0:01:04]} 38. Bf2 {[%clk 0:00:18.2]} 38... g5 {[%clk 0:01:02.1]} 39.
e6 {[%clk 0:00:13.5]} 39... Rxe6 {[%clk 0:00:57.5]} 40. Rxe6 {[%clk 0:00:13.5]}
40... Qxe6 {[%clk 0:00:58.4]} 41. Qb8+ {[%clk 0:00:13.5]} 41... Kh7 {[%clk
0:00:59]} 42. Qxb7 {[%clk 0:00:13.9]} 42... Qd6 {[%clk 0:00:38.3]} 43. Qe4+
{[%clk 0:00:12.6]} 43... Kg8 {[%clk 0:00:38.9]} 44. Qe8+ {[%clk 0:00:12.6]}
44... Kh7 {[%clk 0:00:39.2]} 45. Qe4+ {[%clk 0:00:12.7]} 45... g6 {[%clk
0:00:39.1]} 46. Qc4 {[%clk 0:00:11.4]} 46... h5 {[%clk 0:00:34.2]} 47. Qxc5
{[%clk 0:00:11.7]} 47... Qd1+ {[%clk 0:00:33]} 48. Kg2 {[%clk 0:00:11.4]} 48...
g4 {[%clk 0:00:32.8]} 49. fxg4 {[%clk 0:00:11.2]} 49... Qxg4+ {[%clk 0:00:32.2]}
50. Kh2 {[%clk 0:00:09.7]} 50... Qf4+ {[%clk 0:00:31.1]} 51. Bg3 {[%clk
0:00:10]} 51... Qd2+ {[%clk 0:00:31.3]} 52. Kh3 {[%clk 0:00:10.3]} 52... Qd7+
{[%clk 0:00:30.6]} 53. Kh2 {[%clk 0:00:10.2]} 53... Qd2+ {[%clk 0:00:30.9]} 54.
Kh3 {[%clk 0:00:10.6]} 54... Qd7+ {[%clk 0:00:28.3]} 55. Kg2 {[%clk 0:00:10.2]}
55... Qb7+ {[%clk 0:00:24.1]} 56. Kh2 {[%clk 0:00:10.1]} 56... Qe4 {[%clk
0:00:20.7]} 57. Qc7+ {[%clk 0:00:10]} 57... Kh6 {[%clk 0:00:20]} 58. Qf4+ {[%clk
0:00:09.1]} 58... Qxf4 {[%clk 0:00:19.6]} 59. Bxf4+ {[%clk 0:00:10]} 59... g5
{[%clk 0:00:19.6]} 60. Bd2 {[%clk 0:00:10.3]} 60... Kg6 {[%clk 0:00:18.6]} 61.
Bxb4 {[%clk 0:00:09.9]} 61... Kf5 {[%clk 0:00:19.1]} 62. Kg3 {[%clk 0:00:09.4]}
62... Ke6 {[%clk 0:00:19.3]} 63. a4 {[%clk 0:00:09]} 63... Kd7 {[%clk
0:00:19.7]} 64. a5 {[%clk 0:00:09.4]} 64... Kc8 {[%clk 0:00:20]} 65. Be7 {[%clk
0:00:09.6]} 65... Kb7 {[%clk 0:00:19.6]} 66. Bxg5 {[%clk 0:00:09.8]} 66... Ka8
{[%clk 0:00:20.2]} 67. Kh4 {[%clk 0:00:10.5]} 67... Kb7 {[%clk 0:00:20.2]} 68.
Kxh5 {[%clk 0:00:11.4]} 68... Ka8 {[%clk 0:00:20.6]} 69. Kg4 {[%clk 0:00:11.7]}
69... Kb7 {[%clk 0:00:21.1]} 70. a6+ {[%clk 0:00:12]} 70... Ka8 {[%clk 0:00:22]}
71. a7 {[%clk 0:00:11.8]} 71... Kxa7 {[%clk 0:00:21.4]} 1/2-1/2